bitfinex-derivatives/quotes_ETHF0:USTF0_20241004
["timestamp","ask_amount","ask_price","bid_price","bid_amount"]
[1728059220102,2.0797,2433.0,2432.7,4.1104]
[1728059220299,1.02756,2433.3,2432.7,1.02781]
[1728059220498,1.02756,2433.3,2432.6,3.2078]
[1728059220499,0.41111,2432.9,2432.8,0.4111]
[1728059220797,1.0764,2433.2,2432.6,3.2078]
[1728059220990,0.41104,2433.3,2432.9,3.2078]
[1728059221196,3.21,2433.9,2433.1,3.21]
[1728059221396,3.2078,2434.0,2433.1,3.21]
[1728059221397,0.41101,2433.4,2433.3,0.41101]
[1728059221701,0.41099,2433.6,2433.5,0.41098]
[1728059221999,4.52059,2433.6,2433.5,0.41098]
[1728059222200,0.41097,2433.7,2433.6,0.41096]
[1728059222593,0.41099,2433.6,2433.5,0.41098]
[1728059222793,3.21,2433.9,2433.2,3.2078]
[1728059222995,0.41102,2433.4,2433.3,0.41102]
[1728059223206,0.41105,2433.2,2433.1,0.41105]
[1728059223401,1.02756,2433.3,2432.9,3.2078]
[1728059223599,0.41107,2433.0,2432.9,3.2078]
[1728059223995,0.41106,2433.1,2433.0,0.41106]
[1728059224706,0.41107,2433.0,2432.9,3.2078]
[1728059224898,0.41107,2433.0,2432.9,3.61889]
[1728059225099,1.02763,2433.2,2432.9,3.2078]
[1728059225300,0.41107,2433.1,2433.0,0.41106]
[1728059225600,3.2556,2433.5,2432.9,3.2078]
[1728059225805,2.5721,2433.5,2433.4,0.411]
[1728059226002,0.41097,2433.7,2433.6,0.41096]
[1728059226200,3.1944,2433.9,2433.2,3.2078]
[1728059226402,0.41102,2433.3,2433.2,3.61883]
[1728059226595,0.41102,2433.3,2433.2,3.2078]
[1728059226803,0.4111,2432.9,2432.8,3.61889]
[1728059227405,4.2929,2433.2,2432.8,3.2078]
[1728059227406,3.2653,2433.2,2432.8,3.2078]
[1728059227705,0.41108,2433.0,2432.9,0.41107]
[1728059228007,0.41106,2433.1,2433.0,0.41106]
[1728059228403,4.52146,2433.1,2433.0,0.41106]
[1728059228709,4.52146,2433.1,2432.9,0.41108]
[1728059228710,0.41108,2433.0,2432.9,0.41108]
[1728059229401,3.2653,2433.2,2433.1,0.41105]
[1728059229602,3.2078,2433.4,2432.9,4.1104]
[1728059229914,3.2078,2433.4,2433.3,0.41102]
[1728059231011,0.411,2433.5,2433.4,0.411]
[1728059231914,0.41102,2433.4,2433.3,0.41101]
[1728059232205,1.02746,2433.6,2433.1,3.2078]
[1728059232511,0.41104,2433.3,2433.2,0.41103]
[1728059233312,1.02752,2433.4,2433.1,0.41104]
[1728059233313,0.41105,2433.2,2433.1,0.41104]
[1728059233501,0.41105,2433.2,2432.8,3.2078]
[1728059233705,0.41109,2432.9,2432.8,3.61889]
[1728059233907,0.41108,2433.0,2432.9,0.41108]
[1728059234102,0.41105,2433.2,2432.8,3.2078]
[1728059234506,0.41108,2433.0,2432.9,0.41107]
[1728059234807,0.41107,2433.1,2433.0,0.41106]
[1728059235206,3.08948043,2433.4,2433.3,0.41102]
[1728059235409,0.41101,2433.4,2433.3,0.41102]
[1728059236314,5.88627043,2433.5,2432.9,2.12021]
[1728059236515,0.41104,2433.3,2433.2,0.41103]
[1728059236808,0.41105,2433.2,2432.8,3.2078]
[1728059237013,0.41108,2433.0,2432.9,0.41108]
[1728059237512,0.41107,2433.1,2433.0,0.41106]
[1728059237909,0.41109,2433.0,2432.9,0.41108]
[1728059238325,2.03324,2433.2,2432.8,3.2078]
[1728059238503,0.41109,2433.0,2432.9,0.41108]
[1728059244312,0.41107,2433.1,2433.0,0.41105]
[1728059246514,0.41114,2432.6,2432.5,3.61895]
[1728059246716,0.41114,2432.6,2432.5,3.61896]
[1728059247310,3.10343911,2432.6,2432.5,3.2078]
[1728059247616,0.41114,2432.6,2432.5,3.61896]
[1728059248207,3.10343911,2432.6,2432.5,3.61896]
[1728059248514,0.41114,2432.6,2432.5,0.41116]
[1728059248914,3.71659911,2432.7,2432.2,4.23582]
[1728059249124,0.41117,2432.5,2432.4,0.41116]
[1728059249314,0.41118,2432.4,2432.3,0.41117]
[1728059249620,6.91439911,2432.6,2432.2,3.2078]
[1728059249824,0.41117,2432.5,2432.4,0.41117]
[1728059250013,6.91439911,2432.6,2432.3,0.41118]
[1728059250014,0.41119,2432.4,2432.3,0.41118]
[1728059251516,5.24999,2432.6,2432.3,0.41118]
[1728059251717,5.24999,2432.6,2432.2,3.2078]
[1728059251914,1.0279,2432.5,2432.2,3.2078]
[1728059252116,0.41119,2432.3,2432.2,3.61899]
[1728059253415,0.41119,2432.3,2432.2,3.619]
[1728059254116,0.41119,2432.3,2432.0,1.02809]
[1728059254117,1.0279,2432.5,2431.9,4.2407]
[1728059254420,3.21,2432.1,2431.7,0.41128]
[1728059254619,3.21,2431.8,2431.6,0.4113]
[1728059254822,0.41129,2431.7,2431.6,0.41131]
[1728059255016,3.21,2431.8,2431.6,0.4113]
[1728059255017,3.62129,2431.8,2431.6,0.4113]
[1728059255722,3.21,2431.8,2431.3,1.0264]
[1728059255910,0.41132,2431.6,2431.3,1.0264]
[1728059256115,0.4113,2431.7,2431.4,0.41133]
[1728059256317,0.4113,2431.7,2431.1,1.02848]
[1728059256318,0.41133,2431.5,2431.2,0.41136]
[1728059256715,0.41135,2431.4,2431.0,4.2092]
[1728059256915,3.21,2431.4,2431.0,4.6206]
[1728059257222,0.41138,2431.2,2431.0,4.6206]
[1728059257721,5.3593,2431.4,2431.0,4.6206]
[1728059257722,0.41137,2431.3,2431.1,0.41139]
[1728059258815,0.41138,2431.2,2431.1,0.41139]
[1728059259219,0.41137,2431.3,2431.1,0.41139]
[1728059260832,6.4218,2431.4,2431.0,3.2078]
[1728059261118,0.41134,2431.4,2431.2,0.41136]
[1728059261326,0.41134,2431.4,2431.1,0.41139]
[1728059261619,3.2078,2431.7,2431.6,0.41131]
[1728059262019,0.41127,2431.9,2431.7,0.41129]
[1728059262321,3.21,2432.0,2431.6,0.41129]
[1728059262522,0.41127,2431.9,2431.4,1.0256]
[1728059262831,0.41127,2431.9,2431.7,0.41129]
[1728059263016,0.41128,2431.8,2431.6,0.4113]
[1728059263317,0.41127,2431.9,2431.7,0.41129]
[1728059263526,3.21,2432.0,2431.6,0.4113]
[1728059263527,0.41128,2431.8,2431.6,0.4113]
[1728059264227,4.282,2432.1,2431.4,1.0256]
[1728059264421,4.69324,2432.1,2431.9,0.41125]
[1728059264623,4.282,2432.1,2431.8,0.41127]
[1728059264921,0.41125,2432.0,2431.8,0.41127]
[1728059265121,0.41125,2432.0,2431.9,0.41126]
[1728059265519,3.61902,2432.1,2431.7,1.02823]
[1728059265834,0.41122,2432.1,2432.0,0.41124]
[1728059266716,1.45929,2432.4,2431.9,4.23594]
[1728059266919,1.0481,2432.4,2431.9,3.2078]
[1728059267129,0.41121,2432.2,2432.1,0.41122]
[1728059267323,0.4112,2432.3,2431.9,3.2078]
[1728059267623,0.4112,2432.3,2432.2,0.41121]
[1728059268524,0.41119,2432.3,2432.1,0.41121]
[1728059268730,1.0481,2432.4,2431.9,3.2078]
[1728059269027,0.41118,2432.4,2432.2,0.4112]
[1728059269330,0.41121,2432.2,2432.1,0.41122]
[1728059269621,1.02791,2432.5,2432.1,0.41122]
[1728059269830,0.4112,2432.3,2432.1,0.41122]
[1728059270619,0.4112,2432.3,2432.2,0.41121]
[1728059270820,0.4112,2432.3,2432.1,0.41121]
[1728059271015,0.41119,2432.3,2432.2,0.4112]
[1728059271424,1.02791,2432.5,2432.0,0.9639]
[1728059271623,3.2078,2432.7,2432.2,3.2078]
[1728059271815,3.61893,2432.7,2432.2,4.23582]
[1728059272019,3.2078,2432.7,2432.2,4.23582]
[1728059272223,3.61894,2432.7,2432.5,0.41115]
[1728059272420,0.9947,2433.0,2432.4,1.02794]
[1728059272627,0.4111,2432.9,2432.7,0.41111]
[1728059272828,0.4111,2432.9,2432.8,0.41111]
[1728059273131,0.4111,2432.9,2432.7,0.41111]
[1728059273322,0.4111,2432.9,2432.8,0.41111]
[1728059273621,0.9947,2433.0,2432.8,0.41111]
[1728059274124,1.40578,2433.0,2432.9,0.41109]
[1728059274329,0.41109,2432.9,2432.8,0.41109]
[1728059274622,0.41109,2432.9,2432.8,0.41111]
[1728059274822,0.9947,2433.0,2432.6,0.9947]
[1728059275030,1.40578,2433.0,2432.9,0.41109]
[1728059275419,0.41108,2433.0,2432.9,0.41109]
[1728059276728,2.0606,2433.3,2432.8,3.2078]
[1728059276924,3.10323911,2433.8,2433.7,0.41095]
[1728059277125,2.69229911,2433.8,2433.7,0.41095]
[1728059277322,2.69229911,2433.8,2433.7,13.72755]
[1728059277829,2.69229911,2433.8,2433.7,17.67755]
[1728059278131,0.41092,2433.9,2433.8,0.41093]
[1728059278428,1.0324,2434.5,2433.7,3.2078]
[1728059278429,1.0271,2434.4,2433.7,3.2078]
[1728059278827,0.41088,2434.2,2434.1,0.41088]
[1728059279137,0.4109,2434.1,2433.9,0.41091]
[1728059279437,0.4109,2434.1,2434.0,0.4109]
[1728059279621,1.0271,2434.4,2433.7,3.2078]
[1728059279622,0.41088,2434.2,2433.7,3.2078]
[1728059280021,1.0271,2434.4,2433.9,0.41091]
[1728059280022,1.02714,2434.3,2433.9,0.41091]
[1728059280421,0.41089,2434.1,2434.0,0.4109]
[1728059280624,0.41089,2434.1,2433.7,3.2078]
[1728059280825,4.9824,2434.5,2433.7,3.2078]
[1728059281031,0.41097,2433.6,2433.5,0.41098]
[1728059281530,0.41094,2433.8,2433.7,0.41094]
[1728059281725,0.41093,2433.9,2433.8,0.41093]
[1728059282028,0.41089,2434.1,2434.0,0.41089]
[1728059282529,6.27926,2434.5,2433.7,4.2277]
[1728059282725,0.41094,2433.8,2433.7,3.2078]
[1728059282928,4.97722,2434.2,2433.5,0.41098]
[1728059282929,3.95,2434.2,2433.5,0.41098]
[1728059283230,0.41098,2433.6,2433.4,0.41099]
[1728059283429,0.41098,2433.6,2433.5,0.41099]
[1728059283727,1.015,2434.0,2433.2,4.2247]
[1728059284028,1.0274,2433.7,2433.2,4.2247]
[1728059284225,0.41101,2433.4,2433.3,0.41101]
[1728059284427,3.95,2433.6,2432.9,3.2078]
[1728059284736,0.41113,2432.7,2432.6,3.2078]
[1728059285329,0.41114,2432.6,2432.5,0.41115]
[1728059285730,0.41115,2432.6,2432.4,0.41116]
[1728059286328,0.41117,2432.5,2432.3,3.61898]
[1728059286726,0.41117,2432.5,2432.4,0.41117]
[1728059286927,1.02769,2433.0,2432.3,3.2078]
[1728059286928,0.41115,2432.6,2432.3,3.2078]
[1728059287118,1.02769,2433.0,2432.3,3.2078]
[1728059287324,0.41117,2432.5,2432.3,3.61897]
[1728059287527,0.41117,2432.5,2432.4,0.41117]
[1728059287933,0.41117,2432.5,2432.3,3.61898]
[1728059288128,0.41117,2432.5,2432.4,0.41117]
[1728059288328,0.41117,2432.5,2432.3,3.61898]
[1728059288831,1.02769,2433.0,2432.3,3.2078]
[1728059289037,1.02779,2432.8,2432.3,3.2078]
[1728059289225,1.02779,2432.8,2432.1,5.16788138]
[1728059289226,3.95,2432.8,2432.0,3.2078]
[1728059289432,0.41121,2432.2,2432.0,3.2078]
[1728059289730,0.41121,2432.2,2432.0,3.61903]
[1728059289934,0.41121,2432.2,2432.0,3.2078]
[1728059290228,2.11,2432.4,2432.0,3.2078]
[1728059290435,1.02798,2432.3,2431.6,5.2636]
[1728059290624,3.1306,2432.4,2431.6,5.2636]
[1728059290842,3.1306,2432.4,2431.7,1.02824]
[1728059291029,3.1306,2432.4,2431.9,3.2078]
[1728059291228,3.1306,2432.4,2431.7,1.02824]
[1728059291432,0.4112,2432.3,2432.1,0.41122]
[1728059291636,2.52118,2432.4,2432.2,0.41119]
[1728059291836,2.11,2432.4,2431.9,3.2078]
[1728059292039,0.41119,2432.3,2431.9,3.2078]
[1728059292234,0.41119,2432.3,2432.0,0.41124]
[1728059292435,0.41119,2432.3,2432.1,0.41122]
[1728059292639,2.11,2432.4,2431.9,3.2078]
[1728059292640,2.11,2432.4,2432.0,0.41123]
[1728059292836,0.4112,2432.3,2432.0,0.41123]
[1728059293240,0.4112,2432.3,2432.1,0.41122]
[1728059293548,2.52118,2432.4,2431.9,3.2078]
[1728059293841,2.11,2432.4,2431.9,3.2078]
[1728059294044,0.41122,2432.2,2431.9,3.2078]
[1728059294246,0.41119,2432.3,2432.1,0.41122]
[1728059295634,0.41119,2432.3,2431.9,3.2078]
[1728059295833,0.41119,2432.3,2432.1,0.41122]
[1728059296035,2.52118,2432.4,2432.1,0.41122]
[1728059296334,0.41119,2432.3,2432.1,0.41122]
[1728059296639,0.41119,2432.3,2432.0,0.41123]
[1728059296838,2.11,2432.4,2431.9,3.2078]
[1728059297335,0.41121,2432.2,2432.0,0.41123]
[1728059297641,1.0617,2432.4,2432.3,0.41119]
[1728059297832,1.47288,2432.4,2432.2,0.4112]
[1728059298841,1.0617,2432.4,2431.9,6.4178]
[1728059299046,0.41119,2432.3,2432.1,0.41121]
[1728059299335,0.41119,2432.3,2431.9,6.4178]
[1728059299535,0.41121,2432.2,2431.9,6.4178]
[1728059299837,1.0617,2432.4,2431.3,3.2078]
[1728059299838,6.4178,2432.1,2431.3,3.2078]
[1728059300044,0.41133,2431.5,2431.3,3.2078]
[1728059300540,0.41132,2431.6,2431.3,3.61915]
[1728059300943,0.41132,2431.6,2431.3,3.2078]
[1728059301138,0.41132,2431.6,2431.4,0.41134]
[1728059301443,0.41129,2431.7,2431.3,3.61915]
[1728059301642,0.41129,2431.7,2431.4,0.41133]
[1728059301643,0.41131,2431.7,2431.4,0.41133]
[1728059301844,4.236,2431.8,2431.3,3.2078]
[1728059302139,0.41131,2431.6,2431.4,0.41133]
[1728059302736,0.41128,2431.8,2431.3,3.2078]
[1728059302946,0.41128,2431.8,2431.7,0.41129]
[1728059303138,3.6605961,2432.5,2431.7,7.322]
[1728059303441,4.23567,2432.6,2431.3,6.0]
[1728059303442,3.2078,2432.6,2432.2,3.21]
[1728059303643,3.2078,2432.6,2432.3,0.41118]
[1728059303644,0.41116,2432.5,2432.3,0.41118]
[1728059303942,0.41119,2432.3,2432.2,0.4112]
[1728059304746,3.2078,2432.6,2432.0,3.21]
[1728059305037,3.2078,2432.6,2431.9,3.2078]
[1728059305038,0.41115,2432.6,2432.5,0.41116]
[1728059305234,2.04089,2432.8,2432.2,6.4178]
[1728059305235,0.41113,2432.7,2432.6,0.41112]
[1728059305434,0.41113,2432.7,2432.2,6.4178]
[1728059305435,1.0131,2432.8,2432.2,6.4178]
[1728059305636,1.0131,2432.8,2432.3,0.41118]
[1728059305637,0.41119,2432.4,2432.3,0.41118]
[1728059306032,1.02781,2432.7,2431.9,3.95]
[1728059306033,0.41121,2432.2,2432.1,0.41121]
[1728059306638,1.02795,2432.4,2431.9,3.2078]
[1728059306848,0.41123,2432.1,2432.0,0.41123]
[1728059307336,0.41124,2432.0,2431.9,3.61905]
[1728059307736,1.0637,2432.3,2431.9,3.2078]
[1728059307945,0.41124,2432.0,2431.9,3.61904]
[1728059308843,1.0637,2432.3,2432.0,0.41122]
[1728059308844,0.41123,2432.1,2432.0,0.41122]
[1728059309944,1.0637,2432.3,2431.9,3.2078]
[1728059310143,0.41124,2432.1,2432.0,0.41123]
[1728059310537,1.02803,2432.2,2431.9,3.2078]
[1728059310744,0.41124,2432.0,2431.9,3.2078]
[1728059310941,0.41124,2432.0,2431.9,3.61906]
[1728059311338,0.41124,2432.0,2431.9,3.2078]
[1728059311745,0.41124,2432.0,2431.9,3.61906]
[1728059312340,3.61904,2432.0,2431.9,0.41126]
[1728059312547,3.61904,2432.0,2431.4,2.0322]
[1728059312548,1.02821,2431.8,2431.4,2.0322]
[1728059312736,0.41132,2431.6,2431.4,1.42374]
[1728059312940,0.41132,2431.6,2431.4,1.0124]
[1728059313138,0.41132,2431.6,2431.4,1.42374]
[1728059313538,1.02821,2431.8,2431.4,1.0124]
[1728059313735,0.41132,2431.6,2431.4,1.42374]
[1728059313939,2.6795961,2431.9,2431.3,3.2078]
[1728059314150,0.41127,2431.8,2431.4,0.41133]
[1728059314352,0.41134,2431.4,2431.2,0.41137]
[1728059314537,4.7646961,2431.7,2431.0,1.0198]
[1728059314737,0.41135,2431.4,2431.0,1.0198]
[1728059314951,0.41135,2431.4,2431.1,0.41138]
[1728059315252,1.0384,2431.6,2431.0,1.0198]
[1728059315440,0.41133,2431.5,2431.3,0.41135]
[1728059315639,1.0384,2431.6,2431.3,0.41135]
[1728059315852,4.2462,2431.6,2431.3,0.41135]
[1728059316143,4.2462,2431.6,2431.0,1.0198]
[1728059316347,0.41135,2431.4,2431.0,1.0198]
[1728059316548,0.41134,2431.5,2431.2,0.41137]
[1728059316846,3.95,2431.9,2431.2,3.2078]
[1728059316847,3.2078,2431.9,2431.2,3.2078]
[1728059317047,0.41128,2431.8,2431.6,0.4113]
[1728059317244,0.41135,2431.4,2431.2,3.61916]
[1728059317849,0.41134,2431.5,2431.2,3.2078]
[1728059318147,4.23595,2431.9,2431.2,3.2078]
[1728059318340,0.41127,2431.8,2431.2,3.2078]
[1728059318548,0.41127,2431.8,2431.6,0.4113]
[1728059319143,0.41127,2431.8,2431.3,1.0217]
[1728059319453,3.2078,2431.9,2431.6,0.4113]
[1728059319647,0.41128,2431.8,2431.6,0.4113]
[1728059320355,0.41128,2431.8,2431.3,1.0217]
[1728059320549,3.2078,2431.9,2431.3,1.0217]
[1728059321147,0.4113,2431.7,2431.5,0.41132]
[1728059321346,0.41131,2431.6,2431.3,1.0217]
[1728059321541,3.2078,2431.9,2431.5,3.2078]
[1728059321753,0.41123,2432.1,2431.9,0.41125]
[1728059321954,0.41123,2432.1,2431.6,1.0327]
[1728059322264,0.41124,2432.0,2431.9,0.41125]
[1728059323142,3.0333,2432.2,2432.0,0.41124]
[1728059323143,0.41123,2432.1,2432.0,0.41124]
[1728059324048,3.44452,2432.2,2432.0,0.41122]
[1728059324348,0.41122,2432.1,2432.0,0.41122]
[1728059325948,0.41128,2431.8,2431.7,0.41128]
[1728059326553,8.9390261,2432.2,2431.6,1.0327]
[1728059326752,4.7009961,2432.2,2431.6,4.2405]
[1728059327051,2.43262,2432.2,2432.1,0.41122]
[1728059327253,12.0221961,2432.2,2431.6,3.2078]
[1728059327553,0.41129,2431.7,2431.6,0.41129]
[1728059327749,0.41127,2431.9,2431.8,0.41127]
[1728059327947,0.41128,2431.8,2431.7,0.41128]
[1728059328244,2.6795961,2432.1,2431.4,1.02835]
[1728059328445,2.6795961,2432.1,2432.0,0.41123]
[1728059328446,0.41123,2432.1,2432.0,0.41123]
[1728059328653,0.41121,2432.2,2432.1,0.41122]
[1728059329051,0.41121,2432.2,2431.9,3.2078]
[1728059329052,2.6795961,2432.3,2431.9,3.2078]
[1728059329249,0.41122,2432.2,2432.1,0.41122]
[1728059330856,0.41122,2432.2,2431.9,3.2078]
[1728059330857,0.41124,2432.0,2431.9,3.61905]
[1728059331352,0.41124,2432.0,2431.9,3.2078]
[1728059331659,0.41124,2432.0,2431.9,0.41126]
[1728059332753,3.7076261,2432.2,2431.6,4.23606]
[1728059332953,3.0908161,2432.2,2432.1,0.41122]
[1728059333655,0.1764961,2432.3,2432.1,13.3212]
[1728059333857,2.68933615,2433.0,2432.6,0.41114]
[1728059334049,0.41101,2433.4,2433.2,0.41103]
[1728059334258,3.21551532,2433.7,2433.3,6.4178]
[1728059334259,0.916,2433.7,2433.3,6.4178]
[1728059334460,0.41097,2433.6,2433.4,0.411]
[1728059334861,0.916,2433.7,2433.3,6.4178]
[1728059335161,4.1096,2433.6,2432.9,6.4178]
[1728059335454,1.32696,2433.7,2433.4,0.41099]
[1728059335661,0.916,2433.7,2433.5,0.41098]
[1728059335954,0.916,2433.7,2433.2,3.2078]
[1728059336157,0.916,2433.7,2433.6,0.41097]
[1728059336359,0.987,2433.9,2433.5,3.2078]
[1728059336657,0.987,2433.9,2433.8,0.41094]
[1728059336861,0.9383,2434.1,2433.8,0.41094]
[1728059337153,1.3492,2434.1,2433.8,0.41094]
[1728059337359,1.3492,2434.1,2433.8,0.41093]
[1728059337752,0.9383,2434.1,2433.9,0.41091]
[1728059337960,1.34919,2434.1,2433.9,0.41091]
[1728059338659,1.34919,2434.1,2434.0,0.4109]
[1728059338660,0.9383,2434.1,2434.0,0.4109]
[1728059339455,3.2078,2434.5,2433.8,3.2078]
[1728059339651,0.9598,2434.6,2434.2,0.41086]
[1728059339853,0.41082,2434.5,2434.2,0.41086]
[1728059340048,1.37061,2434.6,2434.2,0.41086]
[1728059340263,0.41082,2434.5,2434.2,0.41086]
[1728059340458,1.37061,2434.6,2434.3,0.41085]
[1728059340758,1.37061,2434.6,2434.1,3.2078]
[1728059340759,0.9598,2434.6,2434.1,3.2078]
[1728059340962,0.9598,2434.6,2434.4,0.41083]
[1728059341162,44.0078,2435.1,2434.4,0.41083]
[1728059341163,3.21551532,2435.5,2434.5,3.95]
[1728059341365,5.0673,2435.5,2434.7,3.2078]
[1728059341554,0.41073,2435.1,2434.7,3.61858]
[1728059341862,3.2078,2435.2,2434.7,0.41078]
[1728059342062,3.2078,2435.2,2434.2,8.18495]
[1728059342063,0.9174,2435.1,2434.2,8.18495]
[1728059342266,1.32812,2435.1,2434.8,0.41075]
[1728059342461,0.9174,2435.1,2434.8,3.2078]
[1728059342664,0.4107,2435.2,2434.9,0.41074]
[1728059342868,0.41067,2435.4,2435.1,0.41071]
[1728059343060,2.7769,2435.5,2434.8,3.2078]
[1728059343376,0.4107,2435.2,2435.0,0.41073]
[1728059343757,2.7769,2435.5,2434.8,7.1578]
[1728059344067,0.41068,2435.4,2435.1,0.41072]
[1728059344361,2.7769,2435.5,2435.1,0.41072]
[1728059344362,0.41069,2435.3,2435.1,0.41072]
[1728059344562,0.41068,2435.4,2434.9,0.41075]
[1728059344758,0.41068,2435.4,2435.1,0.41071]
[1728059344955,2.7769,2435.5,2434.8,3.2078]
[1728059345162,5.9847,2435.5,2434.8,3.2078]
[1728059345364,0.41077,2434.8,2434.6,0.4108]
[1728059345764,0.41077,2434.8,2434.5,0.41082]
[1728059346067,1.02668,2435.4,2434.4,3.2078]
[1728059346264,0.41077,2434.8,2434.6,0.41079]
[1728059346461,5.9847,2435.5,2434.4,3.2078]
[1728059346462,1.02672,2435.3,2434.4,3.2078]
[1728059346662,0.41078,2434.8,2434.6,0.4108]
[1728059346862,0.41078,2434.8,2434.4,3.2078]
[1728059347062,1.02672,2435.3,2434.7,0.41077]
[1728059347063,0.41075,2434.9,2434.7,0.41077]
[1728059347267,1.02672,2435.3,2434.8,0.41077]
[1728059347564,0.41076,2434.9,2434.7,0.41078]
[1728059348361,0.41076,2434.9,2434.7,0.41077]
[1728059348661,3.2078,2435.5,2435.4,0.41067]
[1728059348866,5.0704,2435.9,2435.1,7.1578]
[1728059349060,0.41061,2435.8,2435.6,0.41063]
[1728059349370,5.0704,2435.9,2435.6,0.41062]
[1728059349566,0.41061,2435.8,2435.6,0.41063]
[1728059349878,0.41061,2435.8,2435.4,3.2078]
[1728059350070,0.41061,2435.8,2435.6,0.41062]
[1728059350274,0.41062,2435.8,2435.5,0.41064]
[1728059350463,0.41062,2435.8,2435.6,0.41063]
[1728059350664,0.41061,2435.8,2435.4,3.2078]
[1728059350860,0.41061,2435.8,2435.6,0.41063]
[1728059351160,5.0704,2435.9,2435.6,0.41062]
[1728059351368,1.8626,2435.9,2435.4,3.2078]
[1728059351564,0.41061,2435.8,2435.6,0.41063]
[1728059351870,0.4106,2435.8,2435.5,0.41064]
[1728059352070,0.41062,2435.7,2435.5,0.41065]
[1728059352858,1.8626,2435.9,2435.1,8.18457]
[1728059353064,0.41061,2435.8,2435.6,0.41063]
[1728059353267,0.41063,2435.7,2435.5,0.41065]
[1728059353972,0.41061,2435.8,2435.6,0.41063]
[1728059354163,1.8626,2435.9,2435.4,3.2078]
[1728059354364,2.27319,2435.9,2435.7,0.41061]
[1728059354571,1.8626,2435.9,2435.8,0.4106]
[1728059354773,0.41061,2435.8,2435.6,0.41062]
[1728059355070,2.2732,2435.9,2435.7,0.41061]
[1728059355275,1.8626,2435.9,2435.7,0.41061]
[1728059355567,1.8626,2435.9,2435.8,0.4106]
[1728059355769,0.9525,2435.9,2435.8,0.4106]
[1728059356172,0.14066795,2436.6,2436.1,0.41055]
[1728059356374,0.41053,2436.3,2435.7,7.1578]
[1728059356673,2.98273,2436.5,2436.1,0.41053]
[1728059356971,2.98273,2436.5,2436.0,3.2078]
[1728059357172,0.41051,2436.4,2436.2,0.41052]
[1728059357374,0.4105,2436.4,2436.2,0.41053]
[1728059357579,1.9565,2436.5,2436.4,0.4105]
[1728059357876,0.9744,2436.5,2436.4,0.4105]
[1728059358480,0.4105,2436.4,2436.3,4.36051]
[1728059358784,0.41053,2436.3,2436.1,0.41054]
[1728059359078,2.00063,2436.5,2436.1,0.41054]
[1728059359273,2.00063,2436.5,2435.7,7.1578]
[1728059359473,2.00063,2436.5,2435.9,0.41058]
[1728059359474,0.41057,2436.0,2435.9,0.41058]
[1728059359775,1.98045,2436.4,2435.7,3.2078]
[1728059359776,0.41059,2435.9,2435.8,0.41059]
[1728059360179,0.41058,2436.0,2435.8,0.4106]
[1728059360376,0.41059,2435.9,2435.8,0.41059]
[1728059361172,0.41059,2435.9,2435.7,3.2078]
[1728059361173,0.41057,2436.0,2435.9,0.41057]
[1728059361368,1.02635,2436.2,2435.7,3.2078]
[1728059361773,0.41057,2436.0,2435.9,0.41058]
[1728059361966,0.41052,2436.3,2436.0,0.41057]
[1728059362169,0.41056,2436.1,2436.0,0.41057]
[1728059362367,0.41057,2436.0,2435.9,0.41057]
[1728059363076,4.162,2436.4,2435.7,3.2078]
[1728059363275,4.162,2436.4,2435.7,0.4106]
[1728059363276,0.4106,2435.8,2435.7,0.4106]
[1728059363977,1.02634,2436.2,2435.6,3.2078]
[1728059363978,0.41059,2435.9,2435.8,0.41059]
[1728059364175,0.41059,2435.9,2435.7,0.41061]
[1728059364375,1.02634,2436.2,2435.6,3.2078]
[1728059364577,0.41061,2435.8,2435.7,0.41062]
[1728059364879,0.41061,2435.8,2435.6,3.61843]
[1728059365079,0.41062,2435.7,2435.6,3.2078]
[1728059365282,0.41062,2435.7,2435.5,0.9211]
[1728059365283,0.41062,2435.7,2435.5,1.33174]
[1728059365480,0.41063,2435.7,2435.5,1.33174]
[1728059365675,0.9696,2436.1,2435.5,0.41064]
[1728059365880,0.41063,2435.6,2435.5,0.41064]
[1728059366079,0.41063,2435.6,2435.4,3.95]
[1728059366390,4.1538,2435.8,2435.1,0.9157]
[1728059366589,1.35661,2435.8,2435.6,0.41062]
[1728059367091,1.35661,2435.8,2435.7,0.41062]
[1728059367092,0.946,2435.8,2435.7,0.41062]
[1728059367993,1.3566,2435.8,2435.7,0.41062]
[1728059368289,5.0516,2435.8,2435.3,3.2078]
[1728059368495,0.946,2435.8,2435.5,0.41065]
[1728059368696,0.41063,2435.6,2435.5,0.41065]
[1728059369084,0.946,2435.8,2435.3,3.2078]
[1728059369389,0.946,2435.8,2435.7,0.41062]
[1728059369787,4.23419,2436.1,2435.4,3.95]
[1728059369992,3.2078,2436.1,2435.6,3.2078]
[1728059370184,0.4106,2435.9,2435.7,0.41061]
[1728059370385,4.23419,2436.1,2435.7,0.41062]
[1728059370594,0.41059,2435.9,2435.8,0.41059]
[1728059370888,0.4106,2435.8,2435.7,0.41061]
[1728059371298,3.2078,2436.1,2435.6,3.2078]
[1728059371589,0.41058,2435.9,2435.8,0.41059]
[1728059371785,3.2078,2436.1,2435.6,3.2078]
[1728059371984,3.2078,2436.1,2436.0,0.41057]
[1728059372183,2.01093,2436.5,2436.0,4.36057]
[1728059372184,0.41051,2436.4,2436.0,4.36057]
[1728059372388,0.41051,2436.4,2436.2,0.41052]